{"text_format":"1","workbook":"xlsx","n_sheets":4,"sheets":["Доходы","Расходы","Источники","ExportParams"],"not_rendered":{"charts":0,"images":1,"macros":1,"external_links":0,"defined_names":40,"comments":0,"pivot_tables":0},"unopened":[],"bounds":{"document_bytes":16777216,"sheet_cells":100000,"rows_first":2000,"rows_last":500,"rows_between":2000,"halvings":0,"cell_chars":16384,"cell_head_chars":4096},"cells_cut":0,"cells_raw":0,"read":"whole","date_system":"1900"}

{"sheet":"Доходы","index":0,"n_rows":91,"n_cols":8,"rows_kept":91,"cut":false,"hidden":false,"merged":[[0,0,0,3],[1,0,1,3],[3,0,3,3],[5,1,5,3],[6,1,6,3],[9,0,9,3],[10,0,16,0],[10,1,16,1],[10,2,16,2],[10,3,16,3],[10,4,16,4],[10,5,16,5]]}
[null,null,null,null,null,null,null,""]
["ОТЧЕТ ОБ ИСПОЛНЕНИИ БЮДЖЕТА",null,null,null,null,"КОДЫ"]
[null,null,null,null,"  Форма по ОКУД","0503117",null,"C:\\117Y01.txt"]
["на 01.03.2017 г.",null,null,null,"                   Дата","01.03.2017",null,"01.03.2017"]
[null,null,null,null,"             по ОКПО","04184114",null,"117"]
["Наименование финансового органа:","Администрация  муниципального образования  Староладожское сельское поселение Волховского муниципального района Ленинградской области",null,null,"    Глава по БК","821",null,"5"]
["Наименование публично-правового образования:","Староладожское сельское поселение",null,null,"по ОКТМО","41609462"]
["Периодичность: годовая",null,null,null,null,""]
["Единица измерения: руб.",null,null,null,"             по ОКЕИ","383",null,"1"]
["                                 1. Доходы бюджета"]
[" Наименование показателя","Код строки","Код дохода по бюджетной классификации","Утвержденные бюджетные назначения","Исполнено","Неисполненные назначения"]
[]
[]
[]
[]
[]
[]
[1,2,3,"4","5","6"]
["Доходы бюджета - всего","010","X",23836400,1119554.7,{"$f":"IF(OR(D19=\"-\",E19>=D19),\"-\",D19-IF(E19=\"-\",0,E19))","v":22716845.300000001}]
["в том числе:"]
["НАЛОГОВЫЕ И НЕНАЛОГОВЫЕ ДОХОДЫ","010","000 10000000000000000",12825400,1360698.32,{"$f":"IF(OR(D21=\"-\",E21>=D21),\"-\",D21-IF(E21=\"-\",0,E21))","v":11464701.68}]
["НАЛОГИ НА ПРИБЫЛЬ, ДОХОДЫ","010","000 10100000000000000",2329300,319197.21999999997,2010102.78]
["Налог на доходы физических лиц","010","000 10102000010000110",2329300,319197.21999999997,2010102.78]
["Налог на доходы физических лиц с доходов, источником которых является налоговый агент, за исключением доходов, в отношении которых исчисление и уплата налога осуществляются в соответствии со статьями 227, 2271 и 228 Налогового кодекса Российской Федерации","010","000 10102010010000110",2329300,319197.21999999997,2010102.78]
["Налог на доходы физических лиц с доходов, источником которых является налоговый агент, за исключением доходов, в отношении которых исчисление и уплата налога осуществляются в соответствии со статьями 227, 227.1 и 228 Налогового кодекса Российской Федерации (сумма платежа (перерасчеты, недоимка и задолженность по соответствующему платежу, в том числе по отмененному))","010","000 10102010011000110",2329300,318788.40999999997,2010511.59]
["Налог на доходы физических лиц с доходов, источником которых является налоговый агент, за исключением доходов, в отношении которых исчисление и уплата налога осуществляются в соответствии со статьями 227, 227.1 и 228 Налогового кодекса Российской Федерации (пени по соответствующему платежу)","010","000 10102010012100110","-",408.81,"-"]
["НАЛОГИ НА ТОВАРЫ (РАБОТЫ, УСЛУГИ), РЕАЛИЗУЕМЫЕ НА ТЕРРИТОРИИ РОССИЙСКОЙ ФЕДЕРАЦИИ","010","000 10300000000000000",807700,64212.33,743487.67]
["Акцизы по подакцизным товарам (продукции), производимым на территории Российской Федерации","010","000 10302000010000110",807700,64212.33,743487.67]
["Доходы от уплаты акцизов на дизельное топливо, подлежащие распределению между бюджетами субъектов Российской Федерации и местными бюджетами с учетом установленных дифференцированных нормативов отчислений в местные бюджеты","010","000 10302230010000110",321700,22784.04,298915.96000000002]
["Доходы от уплаты акцизов на моторные масла для дизельных и (или) карбюраторных (инжекторных) двигателей, подлежащие распределению между бюджетами субъектов Российской Федерации и местными бюджетами с учетом установленных дифференцированных нормативов отчислений в местные бюджеты","010","000 10302240010000110",6000,238.96,5761.04]
["Доходы от уплаты акцизов на автомобильный бензин, подлежащие распределению между бюджетами субъектов Российской Федерации и местными бюджетами с учетом установленных дифференцированных нормативов отчислений в местные бюджеты","010","000 10302250010000110",480000,44738.53,435261.47]
["Доходы от уплаты акцизов на прямогонный бензин, подлежащие распределению между бюджетами субъектов Российской Федерации и местными бюджетами с учетом установленных дифференцированных нормативов отчислений в местные бюджеты","010","000 10302260010000110","-",-3549.2,"-"]
["НАЛОГИ НА СОВОКУПНЫЙ ДОХОД","010","000 10500000000000000",14000,"-","-"]
["Единый сельскохозяйственный налог","010","000 10503000010000110",14000,"-","-"]
["Единый сельскохозяйственный налог","010","000 10503010010000110",14000,"-","-"]
["Единый сельскохозяйственный налог (сумма платежа (перерасчеты, недоимка и задолженность по соответствующему платежу, в том числе по отмененному))","010","000 10503010011000110",14000,"-","-"]
["НАЛОГИ НА ИМУЩЕСТВО","010","000 10600000000000000",3092900,230573.85,2862326.15]
["Налог на имущество физических лиц","010","000 10601000000000110",92900,2752.02,90147.98]
["Налог на имущество физических лиц, взимаемый по ставкам, применяемым к объектам налогообложения, расположенным в границах сельских поселений","010","000 10601030100000110",92900,2752.02,90147.98]
["Налог на имущество физических лиц, взимаемый по ставкам, применяемым к объектам налогообложения, расположенным в границах сельских поселений (сумма платежа (перерасчеты, недоимка и задолженность по соответствующему платежу, в том числе по отмененному))","010","000 10601030101000110",92900,2644.73,90255.27]
["Налог на имущество физических лиц, взимаемый по ставкам, применяемым к объектам налогообложения, расположенным в границах сельских поселений (пени по соответствующему платежу)","010","000 10601030102100110","-",107.29,"-"]
["Земельный налог","010","000 10606000000000110",3000000,227821.83,2772178.17]
["Земельный налог с организаций","010","000 10606030000000110",1700000,170291,1529709]
["Земельный налог с организаций, обладающих земельным участком, расположенным в границах сельских поселений","010","000 10606033100000110",1700000,170291,1529709]
["Земельный налог с физических лиц","010","000 10606040000000110",1300000,57530.83,1242469.17]
["Земельный налог с физических лиц, обладающих земельным участком, расположенным в границах сельских поселений","010","000 10606043100000110",1300000,57530.83,1242469.17]
["ГОСУДАРСТВЕННАЯ ПОШЛИНА","010","000 10800000000000000",10000,385,9615]
["Государственная пошлина за совершение нотариальных действий (за исключением действий, совершаемых консульскими учреждениями Российской Федерации)","010","000 10804000010000110",10000,385,9615]
["Государственная пошлина за совершение нотариальных действий должностными лицами органов местного самоуправления, уполномоченными в соответствии с законодательными актами Российской Федерации на совершение нотариальных действий","010","000 10804020010000110",10000,385,9615]
["Государственная пошлина за совершение нотариальных действий должностными лицами органов местного самоуправления, уполномоченными в соответствии с законодательными актами Российской Федерации на совершение нотариальных действий (сумма платежа (перерасчеты, недоимка и задолженность по соответствующему платежу, в том числе по отмененному)","010","000 10804020011000110",10000,385,9615]
["ДОХОДЫ ОТ ИСПОЛЬЗОВАНИЯ ИМУЩЕСТВА, НАХОДЯЩЕГОСЯ В ГОСУДАРСТВЕННОЙ И МУНИЦИПАЛЬНОЙ СОБСТВЕННОСТИ","010","000 11100000000000000",1240000,177953.92000000001,1062046.08]
["Доходы, получаемые в виде арендной либо иной платы за передачу в возмездное пользование государственного и муниципального имущества (за исключением имущества бюджетных и автономных учреждений, а также имущества государственных и муниципальных унитарных предприятий, в том числе казенных)","010","000 11105000000000120",700000,97773.43,602226.57000000007]
["Доходы от сдачи в аренду имущества, находящегося в оперативном управлении органов государственной власти, органов местного самоуправления, государственных внебюджетных фондов и созданных ими учреждений (за исключением имущества бюджетных и автономных учреждений)","010","000 11105030000000120",700000,97773.43,{"$f":"IF(OR(D53=\"-\",E53>=D53),\"-\",D53-IF(E53=\"-\",0,E53))","v":602226.57000000007}]
["Доходы от сдачи в аренду имущества, находящегося в оперативном управлении органов управления сельских поселений и созданных ими учреждений (за исключением имущества муниципальных бюджетных и автономных учреждений)","010","000 11105035100000120",700000,97773.43,602226.57000000007]
["Прочие доходы от использования имущества и прав, находящихся в государственной и муниципальной собственности (за исключением имущества бюджетных и автономных учреждений, а также имущества государственных и муниципальных унитарных предприятий, в том числе казенных)","010","000 11109000000000120",540000,80180.490000000005,459819.51]
["Прочие поступления от использования имущества, находящегося в государственной и муниципальной собственности (за исключением имущества бюджетных и автономных учреждений, а также имущества государственных и муниципальных унитарных предприятий, в том числе казенных)","010","000 11109040000000120",540000,80180.490000000005,459819.51]
["Прочие поступления от использования имущества, находящегося в собственности сельских поселений (за исключением имущества муниципальных бюджетных и автономных учреждений, а также имущества муниципальных унитарных предприятий, в том числе казенных)","010","000 11109045100000120",540000,80180.490000000005,459819.51]
["ДОХОДЫ ОТ ОКАЗАНИЯ ПЛАТНЫХ УСЛУГ (РАБОТ) И КОМПЕНСАЦИИ ЗАТРАТ ГОСУДАРСТВА","010","000 11300000000000000",50000,5000,45000]
["Доходы от компенсации затрат государства","010","000 11302000000000130",50000,5000,45000]
["Прочие доходы от компенсации затрат государства","010","000 11302990000000130",50000,5000,45000]
["Прочие доходы от компенсации затрат бюджетов сельских поселений","010","000 11302995100000130",50000,5000,45000]
["ДОХОДЫ ОТ ПРОДАЖИ МАТЕРИАЛЬНЫХ И НЕМАТЕРИАЛЬНЫХ АКТИВОВ","010","000 11400000000000000",5231500,987376,4244124]
["Доходы от реализации имущества, находящегося в государственной и муниципальной собственности (за исключением движимого имущества бюджетных и автономных учреждений, а также имущества государственных и муниципальных унитарных предприятий, в том числе казенных)","010","000 11402000000000000",5231500,987376,4244124]
["Доходы от реализации имущества, находящегося в собственности городских поселений (за исключением имущества муниципальных бюджетных и автономных учреждений, а также имущества муниципальных унитарных предприятий, в том числе казенных), в части реализации материальных запасов по указанному имуществу","010","000 11402050130000440",5231500,987376,4244124]
["Доходы от реализации иного имущества, находящегося в собственности сельских поселений (за исключением имущества муниципальных бюджетных и автономных учреждений, а также имущества муниципальных унитарных предприятий, в том числе казенных), в части реализации основных средств по указанному имуществу","010","000 11402053100000410",5231500,987376,4244124]
["ПРОЧИЕ НЕНАЛОГОВЫЕ ДОХОДЫ","010","000 11700000000000000",50000,-424000,474000]
["Невыясненные поступления","010","000 11701000000000180","-",-424000,"-"]
["Невыясненные поступления, зачисляемые в бюджеты сельских поселений","010","000 11701050100000180","-",-424000,"-"]
["Прочие неналоговые доходы","010","000 11705000000000180",50000,"-","-"]
["Прочие неналоговые доходы бюджетов сельских поселений","010","000 11705050100000180",50000,"-","-"]
["БЕЗВОЗМЕЗДНЫЕ ПОСТУПЛЕНИЯ","010","000 20000000000000000",11011000,-241143.62,11252143.619999999]
["БЕЗВОЗМЕЗДНЫЕ ПОСТУПЛЕНИЯ ОТ ДРУГИХ БЮДЖЕТОВ БЮДЖЕТНОЙ СИСТЕМЫ РОССИЙСКОЙ ФЕДЕРАЦИИ","010","000 20200000000000000",11011000,2796545,8214455]
["Дотации бюджетам бюджетной системы Российской Федерации","010","000 20210000000000151",8250600,1650120,6600480]
["Дотации на выравнивание бюджетной обеспеченности","010","000 20215001000000151",8250600,1650120,6600480]
["Дотации бюджетам сельских поселений на выравнивание бюджетной обеспеченности","010","000 20215001100000151",8250600,1650120,6600480]
["Субсидии бюджетам бюджетной системы Российской Федерации (межбюджетные субсидии)","010","000 20220000000000151",2310700,1087000,1223700]
["Субсидии бюджетам на осуществление дорожной деятельности в отношении автомобильных дорог общего пользования, а также капитального ремонта и ремонта дворовых территорий многоквартирных домов, проездов к дворовым территориям многоквартирных домов населенных пунктов","010","000 20220216000000151",158000,"-","-"]
["Субсидии бюджетам сельских поселений на осуществление дорожной деятельности в отношении автомобильных дорог общего пользования, а также капитального ремонта и ремонта дворовых территорий многоквартирных домов, проездов к дворовым территориям многоквартирных домов населенных пунктов","010","000 20220216100000151",158000,"-","-"]
["Прочие субсидии","010","000 20229999000000151",2152700,1087000,1065700]
["Прочие субсидии бюджетам сельских поселений","010","000 20229999100000151",2152700,1087000,1065700]
["Субвенции бюджетам бюджетной системы Российской Федерации","010","000 20230000000000151",234700,59425,175275]
["Субвенции местным бюджетам на выполнение передаваемых полномочий субъектов Российской Федерации","010","000 20230024000000151",1000,1000,"-"]
["Субвенции бюджетам сельских поселений на выполнение передаваемых полномочий субъектов Российской Федерации","010","000 20230024100000151",1000,1000,"-"]
["Субвенции бюджетам на осуществление первичного воинского учета на территориях, где отсутствуют военные комиссариаты","010","000 20235118000000151",233700,58425,175275]
["Субвенции бюджетам сельских поселений на осуществление первичного воинского учета на территориях, где отсутствуют военные комиссариаты","010","000 20235118100000151",233700,58425,{"$f":"IF(OR(D85=\"-\",E85>=D85),\"-\",D85-IF(E85=\"-\",0,E85))","v":175275}]
["Иные межбюджетные трансферты","010","000 20240000000000151",215000,"-","-"]
["Прочие межбюджетные трансферты, передаваемые бюджетам","010","000 20249999000000151",215000,"-","-"]
["Прочие межбюджетные трансферты, передаваемые бюджетам сельских поселений","010","000 20249999100000151",215000,"-","-"]
["ВОЗВРАТ ОСТАТКОВ СУБСИДИЙ, СУБВЕНЦИЙ И ИНЫХ МЕЖБЮДЖЕТНЫХ ТРАНСФЕРТОВ, ИМЕЮЩИХ ЦЕЛЕВОЕ НАЗНАЧЕНИЕ, ПРОШЛЫХ ЛЕТ","010","000 21900000000000000","-",-3037688.62,"-"]
["Возврат остатков субсидий, субвенций и иных межбюджетных трансфертов, имеющих целевое назначение, прошлых лет из бюджетов сельских поселений","010","000 21900000100000151","-",-3037688.62,"-"]
["Возврат прочих остатков субсидий, субвенций и иных межбюджетных трансфертов, имеющих целевое назначение, прошлых лет из бюджетов сельских поселений","010","000 21960010100000151","-",-3037688.62,"-"]

{"sheet":"Расходы","index":1,"n_rows":231,"n_cols":6,"rows_kept":231,"cut":false,"hidden":false,"merged":[[3,5,8,5],[1,0,1,3],[3,0,10,0],[3,1,10,1],[3,2,8,2],[3,3,10,3],[3,4,8,4]]}
[]
["                          2. Расходы бюджета",null,null,null,null,"Форма 0503117  с.2"]
[]
[" Наименование показателя","Код строки","Код расхода по бюджетной классификации","Утвержденные бюджетные назначения","Исполнено","Неисполненные назначения"]
[]
[]
[]
[]
[]
[]
[]
[1,2,3,"4","5","6"]
["Расходы бюджета - всего","200","x",23836400,2657963.19,{"$f":"IF(OR(D13=\"-\",E13>=D13),\"-\",D13-IF(E13=\"-\",0,E13))","v":21178436.809999999}]
["в том числе:"]
["ОБЩЕГОСУДАРСТВЕННЫЕ ВОПРОСЫ","200","000 0100 0000000000 000 ",6640464,1065824.3999999999,{"$f":"IF(OR(D15=\"-\",E15>=D15),\"-\",D15-IF(E15=\"-\",0,E15))","v":5574639.5999999996}]
["Расходы на выплаты персоналу в целях обеспечения выполнения функций государственными (муниципальными) органами, казенными учреждениями, органами управления государственными внебюджетными фондами","200","000 0100 0000000000 100 ",5174000,996500.53,4177499.4699999997]
["Расходы на выплаты персоналу государственных (муниципальных) органов","200","000 0100 0000000000 120 ",5174000,996500.53,4177499.4699999997]
["Фонд оплаты труда государственных (муниципальных) органов","200","000 0100 0000000000 121 ",3960000,776352,3183648]
["Взносы по обязательному социальному страхованию на выплаты денежного содержания и иные выплаты работникам государственных (муниципальных) органов","200","000 0100 0000000000 129 ",1214000,220148.53,993851.47]
["Закупка товаров, работ и услуг для обеспечения государственных (муниципальных) нужд","200","000 0100 0000000000 200 ",1160000,69323.87,1090676.1299999999]
["Иные закупки товаров, работ и услуг для обеспечения государственных (муниципальных) нужд","200","000 0100 0000000000 240 ",1160000,69323.87,1090676.1299999999]
["Прочая закупка товаров, работ и услуг для обеспечения государственных (муниципальных) нужд","200","000 0100 0000000000 244 ",1160000,69323.87,1090676.1299999999]
["Межбюджетные трансферты","200","000 0100 0000000000 500 ",186464,"-","-"]
["Иные межбюджетные трансферты","200","000 0100 0000000000 540 ",186464,"-","-"]
["Иные бюджетные ассигнования","200","000 0100 0000000000 800 ",120000,"-","-"]
["Субсидии юридическим лицам (кроме некоммерческих организаций), индивидуальным предпринимателям, физическим лицам - производителям товаров, работ, услуг","200","000 0100 0000000000 810 ",100000,"-","-"]
["Иные субсидии юридическим лицам (кроме некоммерческих организаций), индивидуальным предпринимателям, физическим лицам - производителям товаров, работ, услуг","200","000 0100 0000000000 814 ",100000,"-","-"]
["Уплата налогов, сборов и иных платежей","200","000 0100 0000000000 850 ",20000,"-","-"]
["Уплата иных платежей","200","000 0100 0000000000 853 ",20000,"-","-"]
["Функционирование Правительства Российской Федерации, высших исполнительных органов государственной власти субъектов Российской Федерации, местных администраций","200","000 0104 0000000000 000 ",5900000,1040824.92,4859175.08]
["Расходы на выплаты персоналу в целях обеспечения выполнения функций государственными (муниципальными) органами, казенными учреждениями, органами управления государственными внебюджетными фондами","200","000 0104 6720100150 100 ",1051600,197756.68,853843.32000000007]
["Расходы на выплаты персоналу государственных (муниципальных) органов","200","000 0104 6720100150 120 ",1051600,197756.68,853843.32000000007]
["Фонд оплаты труда государственных (муниципальных) органов","200","000 0104 6720100150 121 ",800000,152844,647156]
["Взносы по обязательному социальному страхованию на выплаты денежного содержания и иные выплаты работникам государственных (муниципальных) органов","200","000 0104 6720100150 129 ",251600,44912.68,206687.32]
["Расходы на выплаты персоналу в целях обеспечения выполнения функций государственными (муниципальными) органами, казенными учреждениями, органами управления государственными внебюджетными фондами","200","000 0104 6730100150 100 ",4122400,798743.85,3323656.15]
["Расходы на выплаты персоналу государственных (муниципальных) органов","200","000 0104 6730100150 120 ",4122400,798743.85,3323656.15]
["Фонд оплаты труда государственных (муниципальных) органов","200","000 0104 6730100150 121 ",3160000,623508,2536492]
["Взносы по обязательному социальному страхованию на выплаты денежного содержания и иные выплаты работникам государственных (муниципальных) органов","200","000 0104 6730100150 129 ",962400,175235.85,787164.15]
["Закупка товаров, работ и услуг для обеспечения государственных (муниципальных) нужд","200","000 0104 6730100150 200 ",706000,44324.39,661675.61]
["Иные закупки товаров, работ и услуг для обеспечения государственных (муниципальных) нужд","200","000 0104 6730100150 240 ",706000,44324.39,661675.61]
["Прочая закупка товаров, работ и услуг для обеспечения государственных (муниципальных) нужд","200","000 0104 6730100150 244 ",706000,44324.39,661675.61]
["Иные бюджетные ассигнования","200","000 0104 6730100150 800 ",20000,"-","-"]
["Уплата налогов, сборов и иных платежей","200","000 0104 6730100150 850 ",20000,"-","-"]
["Уплата иных платежей","200","000 0104 6730100150 853 ",20000,"-","-"]
["Обеспечение деятельности финансовых, налоговых и таможенных органов и органов финансового (финансово-бюджетного) надзора","200","000 0106 0000000000 000 ",186464,"-","-"]
["Межбюджетные трансферты","200","000 0106 6730140010 500 ",145764,"-","-"]
["Иные межбюджетные трансферты","200","000 0106 6730140010 540 ",145764,"-","-"]
["Межбюджетные трансферты","200","000 0106 6730140040 500 ",40700,"-","-"]
["Иные межбюджетные трансферты","200","000 0106 6730140040 540 ",40700,"-","-"]
["Другие общегосударственные вопросы","200","000 0113 0000000000 000 ",554000,24999.48,529000.52]
["Закупка товаров, работ и услуг для обеспечения государственных (муниципальных) нужд","200","000 0113 0110110010 200 ",25000,"-","-"]
["Иные закупки товаров, работ и услуг для обеспечения государственных (муниципальных) нужд","200","000 0113 0110110010 240 ",25000,"-","-"]
["Прочая закупка товаров, работ и услуг для обеспечения государственных (муниципальных) нужд","200","000 0113 0110110010 244 ",25000,"-","-"]
["Закупка товаров, работ и услуг для обеспечения государственных (муниципальных) нужд","200","000 0113 0110110020 200 ",200000,"-","-"]
["Иные закупки товаров, работ и услуг для обеспечения государственных (муниципальных) нужд","200","000 0113 0110110020 240 ",200000,"-","-"]
["Прочая закупка товаров, работ и услуг для обеспечения государственных (муниципальных) нужд","200","000 0113 0110110020 244 ",200000,"-","-"]
["Закупка товаров, работ и услуг для обеспечения государственных (муниципальных) нужд","200","000 0113 0110110030 200 ",3000,"-","-"]
["Иные закупки товаров, работ и услуг для обеспечения государственных (муниципальных) нужд","200","000 0113 0110110030 240 ",3000,"-","-"]
["Прочая закупка товаров, работ и услуг для обеспечения государственных (муниципальных) нужд","200","000 0113 0110110030 244 ",3000,"-","-"]
["Закупка товаров, работ и услуг для обеспечения государственных (муниципальных) нужд","200","000 0113 0120110040 200 ",110000,24999.48,85000.52]
["Иные закупки товаров, работ и услуг для обеспечения государственных (муниципальных) нужд","200","000 0113 0120110040 240 ",110000,24999.48,85000.52]
["Прочая закупка товаров, работ и услуг для обеспечения государственных (муниципальных) нужд","200","000 0113 0120110040 244 ",110000,24999.48,85000.52]
["Закупка товаров, работ и услуг для обеспечения государственных (муниципальных) нужд","200","000 0113 0120110050 200 ",42000,"-","-"]
["Иные закупки товаров, работ и услуг для обеспечения государственных (муниципальных) нужд","200","000 0113 0120110050 240 ",42000,"-","-"]
["Прочая закупка товаров, работ и услуг для обеспечения государственных (муниципальных) нужд","200","000 0113 0120110050 244 ",42000,"-","-"]
["Закупка товаров, работ и услуг для обеспечения государственных (муниципальных) нужд","200","000 0113 0120110060 200 ",20000,"-","-"]
["Иные закупки товаров, работ и услуг для обеспечения государственных (муниципальных) нужд","200","000 0113 0120110060 240 ",20000,"-","-"]
["Прочая закупка товаров, работ и услуг для обеспечения государственных (муниципальных) нужд","200","000 0113 0120110060 244 ",20000,"-","-"]
["Закупка товаров, работ и услуг для обеспечения государственных (муниципальных) нужд","200","000 0113 1110110360 200 ",3000,"-","-"]
["Иные закупки товаров, работ и услуг для обеспечения государственных (муниципальных) нужд","200","000 0113 1110110360 240 ",3000,"-","-"]
["Прочая закупка товаров, работ и услуг для обеспечения государственных (муниципальных) нужд","200","000 0113 1110110360 244 ",3000,"-","-"]
["Закупка товаров, работ и услуг для обеспечения государственных (муниципальных) нужд","200","000 0113 6730171340 200 ",1000,"-","-"]
["Иные закупки товаров, работ и услуг для обеспечения государственных (муниципальных) нужд","200","000 0113 6730171340 240 ",1000,"-","-"]
["Прочая закупка товаров, работ и услуг для обеспечения государственных (муниципальных) нужд","200","000 0113 6730171340 244 ",1000,"-","-"]
["Закупка товаров, работ и услуг для обеспечения государственных (муниципальных) нужд","200","000 0113 6890110250 200 ",50000,"-","-"]
["Иные закупки товаров, работ и услуг для обеспечения государственных (муниципальных) нужд","200","000 0113 6890110250 240 ",50000,"-","-"]
["Прочая закупка товаров, работ и услуг для обеспечения государственных (муниципальных) нужд","200","000 0113 6890110250 244 ",50000,"-","-"]
["Иные бюджетные ассигнования","200","000 0113 6890110330 800 ",100000,"-","-"]
["Субсидии юридическим лицам (кроме некоммерческих организаций), индивидуальным предпринимателям, физическим лицам - производителям товаров, работ, услуг","200","000 0113 6890110330 810 ",100000,"-",{"$f":"IF(OR(D79=\"-\",E79>=D79),\"-\",D79-IF(E79=\"-\",0,E79))","v":"-"}]
["Иные субсидии юридическим лицам (кроме некоммерческих организаций), индивидуальным предпринимателям, физическим лицам - производителям товаров, работ, услуг","200","000 0113 6890110330 814 ",100000,"-","-"]
["НАЦИОНАЛЬНАЯ ОБОРОНА","200","000 0200 0000000000 000 ",233700,"-","-"]
["Расходы на выплаты персоналу в целях обеспечения выполнения функций государственными (муниципальными) органами, казенными учреждениями, органами управления государственными внебюджетными фондами","200","000 0200 0000000000 100 ",198700,"-","-"]
["Расходы на выплаты персоналу государственных (муниципальных) органов","200","000 0200 0000000000 120 ",198700,"-","-"]
["Фонд оплаты труда государственных (муниципальных) органов","200","000 0200 0000000000 121 ",153000,"-","-"]
["Взносы по обязательному социальному страхованию на выплаты денежного содержания и иные выплаты работникам государственных (муниципальных) органов","200","000 0200 0000000000 129 ",45700,"-","-"]
["Закупка товаров, работ и услуг для обеспечения государственных (муниципальных) нужд","200","000 0200 0000000000 200 ",35000,"-","-"]
["Иные закупки товаров, работ и услуг для обеспечения государственных (муниципальных) нужд","200","000 0200 0000000000 240 ",35000,"-","-"]
["Прочая закупка товаров, работ и услуг для обеспечения государственных (муниципальных) нужд","200","000 0200 0000000000 244 ",35000,"-","-"]
["Мобилизационная и вневойсковая подготовка","200","000 0203 0000000000 000 ",233700,"-","-"]
["Расходы на выплаты персоналу в целях обеспечения выполнения функций государственными (муниципальными) органами, казенными учреждениями, органами управления государственными внебюджетными фондами","200","000 0203 6890151180 100 ",198700,"-","-"]
["Расходы на выплаты персоналу государственных (муниципальных) органов","200","000 0203 6890151180 120 ",198700,"-","-"]
["Фонд оплаты труда государственных (муниципальных) органов","200","000 0203 6890151180 121 ",153000,"-","-"]
["Взносы по обязательному социальному страхованию на выплаты денежного содержания и иные выплаты работникам государственных (муниципальных) органов","200","000 0203 6890151180 129 ",45700,"-","-"]
["Закупка товаров, работ и услуг для обеспечения государственных (муниципальных) нужд","200","000 0203 6890151180 200 ",35000,"-","-"]
["Иные закупки товаров, работ и услуг для обеспечения государственных (муниципальных) нужд","200","000 0203 6890151180 240 ",35000,"-","-"]
["Прочая закупка товаров, работ и услуг для обеспечения государственных (муниципальных) нужд","200","000 0203 6890151180 244 ",35000,"-","-"]
["НАЦИОНАЛЬНАЯ БЕЗОПАСНОСТЬ И ПРАВООХРАНИТЕЛЬНАЯ ДЕЯТЕЛЬНОСТЬ","200","000 0300 0000000000 000 ",50000,3000,47000]
["Закупка товаров, работ и услуг для обеспечения государственных (муниципальных) нужд","200","000 0300 0000000000 200 ",50000,3000,47000]
["Иные закупки товаров, работ и услуг для обеспечения государственных (муниципальных) нужд","200","000 0300 0000000000 240 ",50000,3000,47000]
["Прочая закупка товаров, работ и услуг для обеспечения государственных (муниципальных) нужд","200","000 0300 0000000000 244 ",50000,3000,47000]
["Защита населения и территории от чрезвычайных ситуаций природного и техногенного характера, гражданская оборона","200","000 0309 0000000000 000 ",25000,"-","-"]
["Закупка товаров, работ и услуг для обеспечения государственных (муниципальных) нужд","200","000 0309 0210110070 200 ",25000,"-","-"]
["Иные закупки товаров, работ и услуг для обеспечения государственных (муниципальных) нужд","200","000 0309 0210110070 240 ",25000,"-","-"]
["Прочая закупка товаров, работ и услуг для обеспечения государственных (муниципальных) нужд","200","000 0309 0210110070 244 ",25000,"-","-"]
["Обеспечение пожарной безопасности","200","000 0310 0000000000 000 ",25000,3000,22000]
["Закупка товаров, работ и услуг для обеспечения государственных (муниципальных) нужд","200","000 0310 0210210080 200 ",25000,3000,22000]
["Иные закупки товаров, работ и услуг для обеспечения государственных (муниципальных) нужд","200","000 0310 0210210080 240 ",25000,3000,22000]
["Прочая закупка товаров, работ и услуг для обеспечения государственных (муниципальных) нужд","200","000 0310 0210210080 244 ",25000,3000,22000]
["НАЦИОНАЛЬНАЯ ЭКОНОМИКА","200","000 0400 0000000000 000 ",3539020,"-","-"]
["Закупка товаров, работ и услуг для обеспечения государственных (муниципальных) нужд","200","000 0400 0000000000 200 ",3539020,"-","-"]
["Иные закупки товаров, работ и услуг для обеспечения государственных (муниципальных) нужд","200","000 0400 0000000000 240 ",3539020,"-","-"]
["Прочая закупка товаров, работ и услуг для обеспечения государственных (муниципальных) нужд","200","000 0400 0000000000 244 ",3539020,"-","-"]
["Дорожное хозяйство (дорожные фонды)","200","000 0409 0000000000 000 ",3339020,"-","-"]
["Закупка товаров, работ и услуг для обеспечения государственных (муниципальных) нужд","200","000 0409 0310110090 200 ",822320,"-","-"]
["Иные закупки товаров, работ и услуг для обеспечения государственных (муниципальных) нужд","200","000 0409 0310110090 240 ",822320,"-","-"]
["Прочая закупка товаров, работ и услуг для обеспечения государственных (муниципальных) нужд","200","000 0409 0310110090 244 ",822320,"-","-"]
["Закупка товаров, работ и услуг для обеспечения государственных (муниципальных) нужд","200","000 0409 0310110100 200 ",990000,"-","-"]
["Иные закупки товаров, работ и услуг для обеспечения государственных (муниципальных) нужд","200","000 0409 0310110100 240 ",990000,"-","-"]
["Прочая закупка товаров, работ и услуг для обеспечения государственных (муниципальных) нужд","200","000 0409 0310110100 244 ",990000,"-","-"]
["Закупка товаров, работ и услуг для обеспечения государственных (муниципальных) нужд","200","000 0409 0310170140 200 ",158000,"-","-"]
["Иные закупки товаров, работ и услуг для обеспечения государственных (муниципальных) нужд","200","000 0409 0310170140 240 ",158000,"-","-"]
["Прочая закупка товаров, работ и услуг для обеспечения государственных (муниципальных) нужд","200","000 0409 0310170140 244 ",158000,"-","-"]
["Закупка товаров, работ и услуг для обеспечения государственных (муниципальных) нужд","200","000 0409 03101S0140 200 ",73000,"-","-"]
["Иные закупки товаров, работ и услуг для обеспечения государственных (муниципальных) нужд","200","000 0409 03101S0140 240 ",73000,"-","-"]
["Прочая закупка товаров, работ и услуг для обеспечения государственных (муниципальных) нужд","200","000 0409 03101S0140 244 ",73000,"-","-"]
["Закупка товаров, работ и услуг для обеспечения государственных (муниципальных) нужд","200","000 0409 0330110120 200 ",100000,"-","-"]
["Иные закупки товаров, работ и услуг для обеспечения государственных (муниципальных) нужд","200","000 0409 0330110120 240 ",100000,"-","-"]
["Прочая закупка товаров, работ и услуг для обеспечения государственных (муниципальных) нужд","200","000 0409 0330110120 244 ",100000,"-","-"]
["Закупка товаров, работ и услуг для обеспечения государственных (муниципальных) нужд","200","000 0409 0710174390 200 ",1087000,"-","-"]
["Иные закупки товаров, работ и услуг для обеспечения государственных (муниципальных) нужд","200","000 0409 0710174390 240 ",1087000,"-","-"]
["Прочая закупка товаров, работ и услуг для обеспечения государственных (муниципальных) нужд","200","000 0409 0710174390 244 ",1087000,"-","-"]
["Закупка товаров, работ и услуг для обеспечения государственных (муниципальных) нужд","200","000 0409 07101S4390 200 ",108700,"-","-"]
["Иные закупки товаров, работ и услуг для обеспечения государственных (муниципальных) нужд","200","000 0409 07101S4390 240 ",108700,"-","-"]
["Прочая закупка товаров, работ и услуг для обеспечения государственных (муниципальных) нужд","200","000 0409 07101S4390 244 ",108700,"-","-"]
["Другие вопросы в области национальной экономики","200","000 0412 0000000000 000 ",200000,"-","-"]
["Закупка товаров, работ и услуг для обеспечения государственных (муниципальных) нужд","200","000 0412 6890110190 200 ",200000,"-","-"]
["Иные закупки товаров, работ и услуг для обеспечения государственных (муниципальных) нужд","200","000 0412 6890110190 240 ",200000,"-","-"]
["Прочая закупка товаров, работ и услуг для обеспечения государственных (муниципальных) нужд","200","000 0412 6890110190 244 ",200000,"-","-"]
["ЖИЛИЩНО-КОММУНАЛЬНОЕ ХОЗЯЙСТВО","200","000 0500 0000000000 000 ",5678216,223358.79,5454857.21]
["Закупка товаров, работ и услуг для обеспечения государственных (муниципальных) нужд","200","000 0500 0000000000 200 ",5517025,223358.79,5293666.21]
["Иные закупки товаров, работ и услуг для обеспечения государственных (муниципальных) нужд","200","000 0500 0000000000 240 ",5517025,223358.79,5293666.21]
["Прочая закупка товаров, работ и услуг для обеспечения государственных (муниципальных) нужд","200","000 0500 0000000000 244 ",5517025,223358.79,5293666.21]
["Иные бюджетные ассигнования","200","000 0500 0000000000 800 ",161191,"-",{"$f":"IF(OR(D143=\"-\",E143>=D143),\"-\",D143-IF(E143=\"-\",0,E143))","v":"-"}]
["Субсидии юридическим лицам (кроме некоммерческих организаций), индивидуальным предпринимателям, физическим лицам - производителям товаров, работ, услуг","200","000 0500 0000000000 810 ",161191,"-","-"]
["Иные субсидии юридическим лицам (кроме некоммерческих организаций), индивидуальным предпринимателям, физическим лицам - производителям товаров, работ, услуг","200","000 0500 0000000000 814 ",161191,"-","-"]
["Жилищное хозяйство","200","000 0501 0000000000 000 ",532000,"-","-"]
["Закупка товаров, работ и услуг для обеспечения государственных (муниципальных) нужд","200","000 0501 6890110200 200 ",40000,"-","-"]
["Иные закупки товаров, работ и услуг для обеспечения государственных (муниципальных) нужд","200","000 0501 6890110200 240 ",40000,"-","-"]
["Прочая закупка товаров, работ и услуг для обеспечения государственных (муниципальных) нужд","200","000 0501 6890110200 244 ",40000,"-","-"]
["Закупка товаров, работ и услуг для обеспечения государственных (муниципальных) нужд","200","000 0501 6890110210 200 ",492000,"-","-"]
["Иные закупки товаров, работ и услуг для обеспечения государственных (муниципальных) нужд","200","000 0501 6890110210 240 ",492000,"-","-"]
["Прочая закупка товаров, работ и услуг для обеспечения государственных (муниципальных) нужд","200","000 0501 6890110210 244 ",492000,"-","-"]
["Коммунальное хозяйство","200","000 0502 0000000000 000 ",1126503.5,"-","-"]
["Закупка товаров, работ и услуг для обеспечения государственных (муниципальных) нужд","200","000 0502 0410110130 200 ",300000,"-","-"]
["Иные закупки товаров, работ и услуг для обеспечения государственных (муниципальных) нужд","200","000 0502 0410110130 240 ",300000,"-","-"]
["Прочая закупка товаров, работ и услуг для обеспечения государственных (муниципальных) нужд","200","000 0502 0410110130 244 ",300000,"-","-"]
["Закупка товаров, работ и услуг для обеспечения государственных (муниципальных) нужд","200","000 0502 0410110140 200 ",200000,"-","-"]
["Иные закупки товаров, работ и услуг для обеспечения государственных (муниципальных) нужд","200","000 0502 0410110140 240 ",200000,"-","-"]
["Прочая закупка товаров, работ и услуг для обеспечения государственных (муниципальных) нужд","200","000 0502 0410110140 244 ",200000,"-","-"]
["Закупка товаров, работ и услуг для обеспечения государственных (муниципальных) нужд","200","000 0502 0410110300 200 ",50000,"-","-"]
["Иные закупки товаров, работ и услуг для обеспечения государственных (муниципальных) нужд","200","000 0502 0410110300 240 ",50000,"-","-"]
["Прочая закупка товаров, работ и услуг для обеспечения государственных (муниципальных) нужд","200","000 0502 0410110300 244 ",50000,"-","-"]
["Закупка товаров, работ и услуг для обеспечения государственных (муниципальных) нужд","200","000 0502 0410110310 200 ",50000,"-","-"]
["Иные закупки товаров, работ и услуг для обеспечения государственных (муниципальных) нужд","200","000 0502 0410110310 240 ",50000,"-","-"]
["Прочая закупка товаров, работ и услуг для обеспечения государственных (муниципальных) нужд","200","000 0502 0410110310 244 ",50000,"-","-"]
["Закупка товаров, работ и услуг для обеспечения государственных (муниципальных) нужд","200","000 0502 0420110150 200 ",300000,"-","-"]
["Иные закупки товаров, работ и услуг для обеспечения государственных (муниципальных) нужд","200","000 0502 0420110150 240 ",300000,"-","-"]
["Прочая закупка товаров, работ и услуг для обеспечения государственных (муниципальных) нужд","200","000 0502 0420110150 244 ",300000,"-","-"]
["Закупка товаров, работ и услуг для обеспечения государственных (муниципальных) нужд","200","000 0502 0420310340 200 ",65312.5,"-","-"]
["Иные закупки товаров, работ и услуг для обеспечения государственных (муниципальных) нужд","200","000 0502 0420310340 240 ",65312.5,"-","-"]
["Прочая закупка товаров, работ и услуг для обеспечения государственных (муниципальных) нужд","200","000 0502 0420310340 244 ",65312.5,"-","-"]
["Иные бюджетные ассигнования","200","000 0502 04203S0180 800 ",161191,"-","-"]
["Субсидии юридическим лицам (кроме некоммерческих организаций), индивидуальным предпринимателям, физическим лицам - производителям товаров, работ, услуг","200","000 0502 04203S0180 810 ",161191,"-","-"]
["Иные субсидии юридическим лицам (кроме некоммерческих организаций), индивидуальным предпринимателям, физическим лицам - производителям товаров, работ, услуг","200","000 0502 04203S0180 814 ",161191,"-","-"]
["Благоустройство","200","000 0503 0000000000 000 ",4019712.5,223358.79,3796353.71]
["Закупка товаров, работ и услуг для обеспечения государственных (муниципальных) нужд","200","000 0503 0510110160 200 ",50000,"-","-"]
["Иные закупки товаров, работ и услуг для обеспечения государственных (муниципальных) нужд","200","000 0503 0510110160 240 ",50000,"-","-"]
["Прочая закупка товаров, работ и услуг для обеспечения государственных (муниципальных) нужд","200","000 0503 0510110160 244 ",50000,"-","-"]
["Закупка товаров, работ и услуг для обеспечения государственных (муниципальных) нужд","200","000 0503 0520110170 200 ",50000,"-","-"]
["Иные закупки товаров, работ и услуг для обеспечения государственных (муниципальных) нужд","200","000 0503 0520110170 240 ",50000,"-","-"]
["Прочая закупка товаров, работ и услуг для обеспечения государственных (муниципальных) нужд","200","000 0503 0520110170 244 ",50000,"-","-"]
["Закупка товаров, работ и услуг для обеспечения государственных (муниципальных) нужд","200","000 0503 0530110180 200 ",1775912.5,31000,1744912.5]
["Иные закупки товаров, работ и услуг для обеспечения государственных (муниципальных) нужд","200","000 0503 0530110180 240 ",1775912.5,31000,1744912.5]
["Прочая закупка товаров, работ и услуг для обеспечения государственных (муниципальных) нужд","200","000 0503 0530110180 244 ",1775912.5,31000,1744912.5]
["Закупка товаров, работ и услуг для обеспечения государственных (муниципальных) нужд","200","000 0503 1010170880 200 ",130700,"-","-"]
["Иные закупки товаров, работ и услуг для обеспечения государственных (муниципальных) нужд","200","000 0503 1010170880 240 ",130700,"-","-"]
["Прочая закупка товаров, работ и услуг для обеспечения государственных (муниципальных) нужд","200","000 0503 1010170880 244 ",130700,"-","-"]
["Закупка товаров, работ и услуг для обеспечения государственных (муниципальных) нужд","200","000 0503 10101S0880 200 ",13100,"-","-"]
["Иные закупки товаров, работ и услуг для обеспечения государственных (муниципальных) нужд","200","000 0503 10101S0880 240 ",13100,"-","-"]
["Прочая закупка товаров, работ и услуг для обеспечения государственных (муниципальных) нужд","200","000 0503 10101S0880 244 ",13100,"-","-"]
["Закупка товаров, работ и услуг для обеспечения государственных (муниципальных) нужд","200","000 0503 6890110220 200 ",2000000,192358.79,1807641.21]
["Иные закупки товаров, работ и услуг для обеспечения государственных (муниципальных) нужд","200","000 0503 6890110220 240 ",2000000,192358.79,1807641.21]
["Прочая закупка товаров, работ и услуг для обеспечения государственных (муниципальных) нужд","200","000 0503 6890110220 244 ",2000000,192358.79,1807641.21]
["КУЛЬТУРА, КИНЕМАТОГРАФИЯ","200","000 0800 0000000000 000 ",7300000,1300000,6000000]
["Закупка товаров, работ и услуг для обеспечения государственных (муниципальных) нужд","200","000 0800 0000000000 200 ",150000,"-","-"]
["Иные закупки товаров, работ и услуг для обеспечения государственных (муниципальных) нужд","200","000 0800 0000000000 240 ",150000,"-","-"]
["Прочая закупка товаров, работ и услуг для обеспечения государственных (муниципальных) нужд","200","000 0800 0000000000 244 ",150000,"-","-"]
["Предоставление субсидий бюджетным, автономным учреждениям и иным некоммерческим организациям","200","000 0800 0000000000 600 ",7150000,1300000,5850000]
["Субсидии бюджетным учреждениям","200","000 0800 0000000000 610 ",7150000,1300000,5850000]
["Субсидии бюджетным учреждениям на финансовое обеспечение государственного (муниципального) задания на оказание государственных (муниципальных) услуг (выполнение работ)","200","000 0800 0000000000 611 ",6000000,1300000,4700000]
["Субсидии бюджетным учреждениям на иные цели","200","000 0800 0000000000 612 ",1150000,"-","-"]
["Культура","200","000 0801 0000000000 000 ",7150000,1300000,5850000]
["Предоставление субсидий бюджетным, автономным учреждениям и иным некоммерческим организациям","200","000 0801 0610100170 600 ",4700000,1300000,3400000]
["Субсидии бюджетным учреждениям","200","000 0801 0610100170 610 ",4700000,1300000,3400000]
["Субсидии бюджетным учреждениям на финансовое обеспечение государственного (муниципального) задания на оказание государственных (муниципальных) услуг (выполнение работ)","200","000 0801 0610100170 611 ",4700000,1300000,3400000]
["Предоставление субсидий бюджетным, автономным учреждениям и иным некоммерческим организациям","200","000 0801 0620100170 600 ",800000,"-","-"]
["Субсидии бюджетным учреждениям","200","000 0801 0620100170 610 ",800000,"-",{"$f":"IF(OR(D207=\"-\",E207>=D207),\"-\",D207-IF(E207=\"-\",0,E207))","v":"-"}]
["Субсидии бюджетным учреждениям на финансовое обеспечение государственного (муниципального) задания на оказание государственных (муниципальных) услуг (выполнение работ)","200","000 0801 0620100170 611 ",800000,"-","-"]
["Предоставление субсидий бюджетным, автономным учреждениям и иным некоммерческим организациям","200","000 0801 0630100170 600 ",500000,"-","-"]
["Субсидии бюджетным учреждениям","200","000 0801 0630100170 610 ",500000,"-","-"]
["Субсидии бюджетным учреждениям на финансовое обеспечение государственного (муниципального) задания на оказание государственных (муниципальных) услуг (выполнение работ)","200","000 0801 0630100170 611 ",500000,"-","-"]
["Предоставление субсидий бюджетным, автономным учреждениям и иным некоммерческим организациям","200","000 0801 6890160140 600 ",215000,"-","-"]
["Субсидии бюджетным учреждениям","200","000 0801 6890160140 610 ",215000,"-","-"]
["Субсидии бюджетным учреждениям на иные цели","200","000 0801 6890160140 612 ",215000,"-","-"]
["Предоставление субсидий бюджетным, автономным учреждениям и иным некоммерческим организациям","200","000 0801 6890170360 600 ",935000,"-","-"]
["Субсидии бюджетным учреждениям","200","000 0801 6890170360 610 ",935000,"-","-"]
["Субсидии бюджетным учреждениям на иные цели","200","000 0801 6890170360 612 ",935000,"-","-"]
["Другие вопросы в области культуры, кинематографии","200","000 0804 0000000000 000 ",150000,"-","-"]
["Закупка товаров, работ и услуг для обеспечения государственных (муниципальных) нужд","200","000 0804 6890110230 200 ",150000,"-","-"]
["Иные закупки товаров, работ и услуг для обеспечения государственных (муниципальных) нужд","200","000 0804 6890110230 240 ",150000,"-","-"]
["Прочая закупка товаров, работ и услуг для обеспечения государственных (муниципальных) нужд","200","000 0804 6890110230 244 ",150000,"-","-"]
["СОЦИАЛЬНАЯ ПОЛИТИКА","200","000 1000 0000000000 000 ",395000,65780,329220]
["Социальное обеспечение и иные выплаты населению","200","000 1000 0000000000 300 ",395000,65780,329220]
["Социальные выплаты гражданам, кроме публичных нормативных социальных выплат","200","000 1000 0000000000 320 ",395000,65780,329220]
["Пособия, компенсации и иные социальные выплаты гражданам, кроме публичных нормативных обязательств","200","000 1000 0000000000 321 ",395000,65780,329220]
["Пенсионное обеспечение","200","000 1001 0000000000 000 ",395000,65780,329220]
["Социальное обеспечение и иные выплаты населению","200","000 1001 6890103010 300 ",395000,65780,329220]
["Социальные выплаты гражданам, кроме публичных нормативных социальных выплат","200","000 1001 6890103010 320 ",395000,65780,329220]
["Пособия, компенсации и иные социальные выплаты гражданам, кроме публичных нормативных обязательств","200","000 1001 6890103010 321 ",395000,65780,329220]
[]
["Результат исполнения бюджета (дефицит / профицит)","450","x","-",-1538408.49,"x                    "]

{"sheet":"Источники","index":2,"n_rows":22,"n_cols":6,"rows_kept":22,"cut":false,"hidden":false,"merged":[[0,0,0,5],[1,0,1,5],[3,0,9,0],[3,1,9,1],[3,2,9,2],[3,3,9,3],[3,4,9,4],[3,5,9,5]]}
["             Форма 0503117  с.3"]
["                    3. Источники финансирования дефицита бюджета"]
[]
[" Наименование показателя","Код строки","Код источника финансирования дефицита бюджета по бюджетной классификации","Утвержденные бюджетные назначения","Исполнено","Неисполненные назначения"]
[]
[]
[]
[]
[]
[]
[1,2,3,"4","5","6"]
["Источники финансирования дефицита бюджета - всего","500","x","-",1538408.49,"x"]
["в том числе:"]
["источники внутреннего финансирования бюджета","520","x","-","-","-"]
["источники внешнего финансирования бюджета","620","x","-","-","-"]
["Изменение остатков средств","700","*** 01000000000000000","-",1538408.49,"-"]
["Изменение остатков средств на счетах по учету средств бюджета","700","*** 01050000000000000","-",1538408.49,"-"]
["Изменение иных финансовых активов за счет средств, размещенных в депозиты в валюте Российской Федерации и иностранной валюте в кредитных организациях","700","*** 01060000000000000","-","-","-"]
["увеличение остатков средств","710","000 01050000000000500",-23836400,-1153554.7,"x                    "]
["Увеличение прочих остатков денежных средств бюджетов сельских поселений","710","000 01050201100000510",-23836400,-1153554.7,"x                    "]
["уменьшение остатков средств","720","000 01050000000000600",23836400,2691963.19,"x                    "]
["Уменьшение прочих остатков денежных средств бюджетов сельских поселений","720","000 01050201100000610",23836400,2691963.19,"x                    "]

{"sheet":"ExportParams","index":3,"n_rows":4,"n_cols":2,"rows_kept":4,"cut":false,"hidden":true,"merged":[]}
["EXPORT_SRC_KIND","СБС"]
["EXPORT_PARAM_SRC_KIND","СБС"]
["EXPORT_SRC_CODE","03121"]
["EXPORT_VB_CODE","3"]